[Event "Chile-ch Women 2019"]
[Site "Santiago Las Condes"]
[Date "2019.02.12"]
[Round "2.1"]
[White "Manriquez Abarzua, Maria Belen"]
[Black "Abarca Gonzalez, Damaris"]
[Result "1-0"]
[ECO "C49"]
[WhiteElo "1650"]
[BlackElo "2039"]
[Annotator "NA RC"]
[PlyCount "89"]
[EventDate "2019.02.12"]
[EventType "swiss"]
[EventCountry "CHI"]
[SourceTitle "playchess.com"]
[Source "ChessBase"]
[SourceQuality "1"]
[TimeControl "5400+30"]

1. e4 {[%emt 0:00:00]} e5 {[%emt 0:00:00]} 2. Nf3 {[%emt 0:00:00]} Nc6 {[%emt 0:00:00]} 3. Nc3 {[%emt 0:00:00]} Nf6 {[%emt 0:00:00]} 4. Bb5 {[%emt 0:00:17]} Bb4 {[%emt 0:00:09]} 5. d3 {[%emt 0:00:48]} d6 {[%emt 0:00:59]} 6. O-O {[%emt 0:02:18]} h6 {[%emt 0:00:11]} 7. h3 {[%emt 0:00:23]} O-O {[%emt 0:00:15]} 8. Ne2 {[%emt 0:05:02] C49: Four Knights: 4 Bb5 Bb4} (8. Be3 Be6 9. Bxc6 bxc6 10. Ne2 Nd7 11. d4 Qf6 12. c3 Ba5 13. Qa4 Bb6 14. Qxc6 Bxh3 15. dxe5 Qg6 {1-0 (45) Zozulia,A (2316)-Assaubayeva,B (2381) Riadh 2017}) 8... a6 {[%emt 0:00:34]} 9. Ba4 {[%emt 0:00:17]} b5 {[%emt 0:03:01]} 10. Bb3 {[%emt 0:00:06]} Na5 {[%emt 0:00:13]} 11. c3 {[%emt 0:00:31]} Nxb3 {[%emt 0:00:36]} 12. Qxb3 {[%emt 0:00:17]} (12. axb3 $5 {[%cal Rc3b4]} Bc5 13. b4 $11) 12... Bc5 {[%emt 0:00:20]} 13. d4 {[%emt 0:03:16]} exd4 {[%emt 0:00:23]} 14. cxd4 {[%emt 0:00:03]} Bb6 {[%emt 0:00:08]} 15. Ng3 {[%emt 0:01:43]} Be6 $146 {[%emt 0:02:12]} ({Predecessor:} 15... c5) 16. Qc2 {[%emt 0:02:12]} c5 {[%emt 0:05:29]} 17. d5 {[%emt 0:04:04]} Bd7 {[%emt 0:00:20]} 18. Bf4 {[%emt 0:05:18]} Bc8 {[%emt 0:07:04]} 19. Rfd1 {[%emt 0:06:32]} Nh7 {[%emt 0:09:01]} 20. a4 {[%emt 0:18:15]} Qf6 {[%emt 0:14:15]} (20... Rb8 $16) 21. Be3 {[%emt 0:00:54]} (21. Qc3 $18) 21... Bxh3 $2 {[%emt 0:01:16]} (21... b4 $16) 22. Nh5 {[%emt 0:03:43]} Qg6 {[%emt 0:07:04]} 23. Nf4 $1 {[%emt 0:00:16]} Qg4 {[%emt 0:00:21]} 24. Nxh3 {[%emt 0:00:40]} Rae8 {[%emt 0:00:20]} 25. axb5 {[%emt 0:01:31]} axb5 {[%emt 0:00:05]} 26. Nd2 {[%emt 0:06:30]} f5 {[%emt 0:06:00]} 27. f3 {[%emt 0:10:41]} Qg3 {[%emt 0:09:47]} 28. Bf2 {[%emt 0:00:12]} Qe5 {[%emt 0:01:42]} 29. b4 {[%emt 0:01:46]} g5 {[%emt 0:07:12]} 30. bxc5 {[%emt 0:16:01]} dxc5 {[%emt 0:01:17]} 31. exf5 {[%emt 0:02:35]} Qxd5 {[%emt 0:02:19]} 32. Ne4 {[%emt 0:00:36]} Qxf5 {[%emt 0:00:51]} 33. Qa2+ {[%emt 0:00:08]} Qe6 {[%emt 0:02:42]} 34. Qxe6+ {[%emt 0:00:43]} Rxe6 {[%emt 0:00:02]} 35. Bxc5 {[%emt 0:00:39]} Bxc5+ {[%emt 0:00:23]} 36. Nxc5 {[%emt 0:00:02]} Re2 {[%emt 0:00:36]} 37. Ra7 {[%emt 0:00:41]} Rc8 {[%emt 0:01:52]} (37... Rf7 $142) 38. Ne4 $18 {[%emt 0:01:28]} Rf8 {[%emt 0:08:50]} 39. Rdd7 {[%emt 0:00:27]} Nf6 {[%emt 0:00:07]} 40. Rg7+ {[%emt 0:01:23]} Kh8 {[%emt 0:00:02]} 41. Nhf2 {[%emt 0:00:52]} b4 {[%emt 0:00:44]} 42. Ng4 {[%emt 0:00:43]} Re1+ {[%emt 0:01:13]} 43. Kh2 {[%emt 0:00:31]} Nxg4+ {[%emt 0:00:25]} 44. fxg4 {[%emt 0:00:02]} Rff1 {[%emt 0:00:22]} 45. Rge7 {[%emt 0:01:07]} 1-0

[Event "Chile-ch Women 2019"]
[Site "Santiago Las Condes"]
[Date "2019.02.12"]
[Round "2.2"]
[White "Jorquera Cabello, Valentina Paz"]
[Black "Melipichun Torres, Katerine"]
[Result "1-0"]
[ECO "A04"]
[WhiteElo "2016"]
[BlackElo "1640"]
[Annotator "NA RC"]
[PlyCount "93"]
[EventDate "2019.02.12"]
[EventType "swiss"]
[EventCountry "CHI"]
[SourceTitle "playchess.com"]
[Source "ChessBase"]
[SourceQuality "1"]
[TimeControl "5400+30"]

1. e4 {[%emt 0:00:00]} e6 {[%emt 0:00:00]} 2. d3 {[%emt 0:00:00]} c5 {[%emt 0:00:00]} 3. g3 {[%emt 0:00:59]} Nc6 {[%emt 0:00:13]} 4. Bg2 {[%emt 0:00:14]} g6 {[%emt 0:00:07]} 5. Nf3 {[%emt 0:02:23]} Bg7 {[%emt 0:00:22]} 6. O-O {[%emt 0:01:16]} Nge7 {[%emt 0:00:31]} 7. c3 {[%emt 0:00:27]} O-O {[%emt 0:01:28]} 8. Re1 {[%emt 0:02:08]} d6 {[%emt 0:00:58]} 9. a3 {[%emt 0:00:07] A04: Unusual lines after 1 Nf3 and King's Indian Attack} (9. Na3 e5 10. Nc2 h6 11. b4 b6 12. Be3 Kh7 13. bxc5 bxc5 14. d4 exd4 15. cxd4 d5 16. exd5 Nxd5 17. dxc5 Nxe3 18. Nxe3 Bxa1 19. Qxa1 {½-½ (102) Lie,K (2533)-Ragger,M (2689) Norway 2016}) 9... b5 {[%emt 0:01:38]} 10. Bg5 $146 {[%emt 0:05:20]} ({Predecessor:} 10. d4 cxd4 11. cxd4 d5 12. e5 Qb6 13. Nc3 h6 14. g4 Bd7 15. Be3 Na5 16. Na2 Nc4 {0-1 (70) Lujan,C (2361)-Watanabe,A (2353) Sao Paulo 2008}) 10... Qd7 {[%emt 0:09:18]} 11. Qc1 {[%emt 0:01:16]} a5 {[%emt 0:06:14]} 12. Bh6 {[%emt 0:00:35]} Ba6 {[%emt 0:01:48]} 13. Bxg7 {[%emt 0:00:20]} Kxg7 {[%emt 0:00:10]} 14. b4 {[%emt 0:07:44]} e5 {[%emt 0:14:03]} 15. Qb2 {[%emt 0:00:29]} f5 {[%emt 0:11:54]} (15... f6 $14) 16. bxc5 {[%emt 0:28:40]} Rad8 {[%emt 0:15:40]} 17. Nbd2 {[%emt 0:20:52]} dxc5 {[%emt 0:11:13]} 18. c4 {[%emt 0:00:27]} Qxd3 $2 {[%emt 0:07:25]} (18... bxc4 $16 19. Nxc4 (19. Nxe5 Qd4 $14) 19... Bxc4 20. Nxe5 (20. dxc4 f4 $14) 20... Qd4 21. Nxc4 f4) 19. Re3 {[%emt 0:01:14]} Qd6 {[%emt 0:10:55]} 20. cxb5 {[%emt 0:00:24]} Rb8 {[%emt 0:02:12] [#]} 21. Nc4 $2 {[%emt 0:02:06]} (21. a4 $1 $18 {is the precise move to win.}) 21... Qe6 {[%emt 0:01:23]} 22. Ncxe5 {[%emt 0:03:45]} Rxb5 {[%emt 0:00:30]} 23. Qc3 {[%emt 0:00:07]} Nxe5 {[%emt 0:00:52]} (23... Qf6 $16) 24. Nxe5 {[%emt 0:02:30]} Kg8 {[%emt 0:00:12]} 25. Nd3 {[%emt 0:01:54]} Rb3 {[%emt 0:01:09]} 26. Nxc5 {[%emt 0:03:34]} Rxc3 {[%emt 0:00:06]} 27. Nxe6 {[%emt 0:00:03]} Rxe3 {[%emt 0:03:09]} 28. fxe3 {[%emt 0:00:06]} Rf6 $16 {[%emt 0:00:00]} 29. Nd4 {[%emt 0:01:43]} fxe4 {[%emt 0:00:00]} 30. Bxe4 {[%emt 0:00:06]} Kg7 {[%emt 0:00:00]} 31. Rc1 {[%emt 0:01:36]} Nc8 {[%emt 0:00:31]} 32. Bd5 {[%emt 0:00:55]} Rd6 {[%emt 0:00:45]} 33. e4 {[%emt 0:00:57]} Nb6 {[%emt 0:00:28]} 34. Rc7+ {[%emt 0:03:17]} Kh6 {[%emt 0:00:28]} 35. Rc5 {[%emt 0:02:10]} Nxd5 {[%emt 0:00:36]} 36. exd5 {[%emt 0:00:44]} Bb7 {[%emt 0:00:36]} 37. Nc6 {[%emt 0:00:18]} a4 {[%emt 0:00:37]} 38. Kf2 {[%emt 0:00:16]} Rxd5 {[%emt 0:00:37]} 39. Rxd5 {[%emt 0:00:53]} Bxc6 {[%emt 0:00:05]} 40. Rc5 {[%emt 0:01:04]} Be8 {[%emt 0:00:22]} 41. h4 {[%emt 0:02:29]} Bf7 {[%emt 0:00:59]} 42. Rc7 {[%emt 0:00:09]} Bb3 {[%emt 0:00:17]} 43. Ke3 {[%emt 0:01:01]} Bd1 {[%emt 0:00:27]} 44. Kf4 {[%emt 0:00:20]} Be2 {[%emt 0:00:40]} 45. Rd7 {[%emt 0:03:55]} Bb5 {[%emt 0:00:35]} 46. Rb7 {[%emt 0:00:30]} Be8 {[%emt 0:00:29]} 47. g4 {[%emt 0:01:20]} 1-0

[Event "Chile-ch Women 2019"]
[Site "Santiago Las Condes"]
[Date "2019.02.12"]
[Round "2.3"]
[White "hormazabal figueroa, constanza valentina"]
[Black "Arbunic Castro, Giovanna"]
[Result "1-0"]
[ECO "D02"]
[WhiteElo "1624"]
[BlackElo "1995"]
[Annotator "NA RC"]
[PlyCount "61"]
[EventDate "2019.02.12"]
[EventType "swiss"]
[EventCountry "CHI"]
[SourceTitle "playchess.com"]
[Source "ChessBase"]
[SourceQuality "1"]
[TimeControl "5400+30"]

{[%evp 10,48,11,32767,32767,32767,32767,32767,32767,0,24,-22,-6,-36,-35,-15,-35,-32,-30,-29,-14,-15,-6,-18,32767,32767,32767,32767,32767,32767,32767,227,32767,32767,32767,378,790,882,987,1301,1714]} 1. d4 {[%emt 0:00:11]} d5 {[%emt 0:00:09]} 2. Bf4 {[%emt 0:00:22]} Nf6 {[%emt 0:00:11]} 3. e3 {[%emt 0:00:29]} e6 {[%emt 0:00:15]} 4. Bd3 {[%emt 0:00:25]} Be7 {[%emt 0:00:27]} 5. Nd2 {[%emt 0:00:32]} O-O {[%emt 0:00:15]} 6. Ngf3 {[%emt 0:00:13]} b6 {[%emt 0:00:10]} 7. Qe2 {[%emt 0:00:42] D02: 1 d4 d5 2 Nf3 sidelines, including 2...Nf6 3 g3 and 2...Nf6 3 Bf4} c5 {[%emt 0:02:13]} 8. c3 {[%emt 0:01:01]} Bb7 {[%emt 0:09:09]} 9. Rd1 {[%emt 0:00:59]} (9. O-O Nbd7 10. Ne5 Nxe5 11. Bxe5 Bd6 12. f4 Qe7 13. Rae1 Ne4 14. Bxe4 dxe4 15. Nc4 Bxe5 16. Nxe5 f6 17. Ng4 Rac8 18. Rd1 {0-1 (52) Ambartsumova,K (2374)-Gunina,V (2507) Moscow 2018}) 9... Nbd7 {[%emt 0:05:50]} 10. Bg3 {[%emt 0:04:50]} Ne4 {[%emt 0:02:16]} 11. dxc5 $146 {[%emt 0:07:43]} ({Predecessor:} 11. Ne5 f5 12. Bxe4 dxe4 {½-½ (20) Hausner,A (1965)-Johnsen,S Thessaloniki 1984}) 11... Nexc5 {[%emt 0:01:23]} 12. Bc2 {[%emt 0:06:20]} Ba6 {[%emt 0:02:20]} 13. c4 {[%emt 0:01:12]} dxc4 {[%emt 0:06:55]} 14. Nxc4 {[%emt 0:00:40]} Rc8 {[%emt 0:09:40]} 15. O-O {[%emt 0:12:15]} Qe8 {[%emt 0:24:30]} 16. b3 {[%emt 0:07:48]} Nf6 {[%emt 0:02:39]} 17. e4 {[%emt 0:03:05]} Na4 {[%emt 0:07:37]} 18. e5 {[%emt 0:03:21]} Nd5 {[%emt 0:01:41]} 19. Rd4 {[%emt 0:14:57]} Qc6 {[%emt 0:02:19] [#]} 20. Bh4 $1 {[%emt 0:13:19]} Bb4 {[%emt 0:05:57]} 21. Ng5 {[%emt 0:16:05]} g6 {[%emt 0:00:51] [#]} 22. Nxh7 $1 {[%emt 0:00:43]} Rfe8 $2 {[%emt 0:04:37]} ({Not} 22... Nac3 23. Qf3 $18) (22... Kxh7 23. Bf6 Nxf6 24. exf6 Rh8) 23. Nf6+ {[%emt 0:00:23]} Nxf6 $18 {[%emt 0:00:27]} 24. Bxf6 {[%emt 0:00:20]} Be7 {[%emt 0:02:00]} 25. Qg4 {[%emt 0:01:29]} Bxf6 {[%emt 0:00:30]} 26. exf6 {[%emt 0:00:03]} Rc7 {[%emt 0:05:10]} 27. Qg5 {[%emt 0:00:30]} e5 {[%emt 0:00:23]} 28. Rd6 {[%emt 0:00:08]} Qxd6 {[%emt 0:00:54]} 29. Nxd6 {[%emt 0:00:11]} Re6 {[%emt 0:00:01]} 30. Ne8 {[%emt 0:00:23]} Bxf1 {[%emt 0:01:03]} 31. Qh6 {[%emt 0:00:15]} 1-0

[Event "Chile-ch Women 2019"]
[Site "Santiago Las Condes"]
[Date "2019.02.13"]
[Round "2.4"]
[White "Gomez Barrera, Javiera Belen"]
[Black "Zuniga Lara, Catalina Paz"]
[Result "1-0"]
[ECO "B01"]
[WhiteElo "1990"]
[BlackElo "1617"]
[Annotator "NA RC"]
[PlyCount "137"]
[EventDate "2019.02.12"]
[EventType "swiss"]
[EventCountry "CHI"]
[SourceTitle "playchess.com"]
[Source "ChessBase"]
[SourceQuality "1"]
[TimeControl "5400+30"]

1. e4 {[%emt 0:00:00]} d5 {[%emt 0:00:42]} 2. exd5 {[%emt 0:00:00]} Qxd5 {[%emt 0:00:05]} 3. Nc3 {[%emt 0:00:00]} Qa5 {[%emt 0:00:08]} 4. d4 {[%emt 0:00:06]} Nf6 {[%emt 0:00:05]} 5. Bc4 {[%emt 0:00:32]} e6 {[%emt 0:00:13] B01: Scandinavian Defence} (5... c6 6. Bd2 Qc7 7. Nf3 Bg4 8. h3 Bxf3 9. Qxf3 e6 10. O-O-O Nbd7 11. g4 Nb6 12. Bb3 O-O-O 13. g5 Ne8 14. Ne4 Nd6 15. Bf4 Nd5 16. Be5 Qd7 17. Nxd6+ Bxd6 18. c4 Nc7 19. Bxg7 Rhg8 20. Bf6 Be7 {1-0 (63) Sethuraman,S (2673)-Akobian,V (2641) Saint Louis 2018}) 6. Bd2 {[%emt 0:12:09]} c6 {[%emt 0:01:03]} 7. Nf3 {[%emt 0:01:20]} Qc7 {[%emt 0:02:08]} 8. Qe2 {[%emt 0:01:52]} Be7 {[%emt 0:00:44]} 9. O-O {[%emt 0:04:44]} Nbd7 {[%emt 0:03:41]} 10. Rfe1 {[%emt 0:04:32]} Nb6 {[%emt 0:01:07]} 11. Bb3 {[%emt 0:00:37]} Nbd5 $146 {[%emt 0:10:22]} ({Predecessor:} 11... a5 12. a4 O-O 13. Rad1 Nbd5 14. Nxd5 cxd5 {0-1 (55) Ulanowski,K (1777)-Les,C (1883) Gdansk 2009}) 12. Ne5 {[%emt 0:09:42]} O-O {[%emt 0:04:36]} 13. Nxd5 (13. Ne4 {[%emt 1:00:56]}) 13... Nxd5 14. Qe4 {[%emt 0:06:32]} f6 {[%emt 0:08:09]} 15. Nf3 {[%emt 0:02:38]} b5 {[%emt 0:09:30]} 16. a4 {[%emt 0:14:28]} b4 {[%emt 0:01:06]} 17. c4 {[%emt 0:00:22]} bxc3 {[%emt 0:00:38]} 18. bxc3 {[%emt 0:00:01]} f5 {[%emt 0:17:08]} 19. Qe2 {[%emt 0:02:52]} Bf6 {[%emt 0:00:36]} 20. c4 {[%emt 0:06:53]} Ne7 {[%emt 0:04:31]} 21. Rab1 {[%emt 0:08:41]} a5 {[%emt 0:00:52]} 22. Ng5 {[%emt 0:14:46]} Bxg5 {[%emt 0:07:52]} 23. Bxg5 {[%emt 0:00:01]} h6 {[%emt 0:00:08]} 24. Bd2 {[%emt 0:03:56]} Bd7 {[%emt 0:02:25]} 25. Bc3 {[%emt 0:02:09]} Rae8 {[%emt 0:01:07]} (25... Ng6 {is a better defense.} 26. Qd2 Kh7) 26. Qe5 {[%emt 0:01:58]} Qxe5 $18 {[%emt 0:08:08]} 27. Rxe5 {[%emt 0:00:01]} Rb8 {[%emt 0:07:48]} 28. Rxa5 {[%emt 0:01:16]} Rb7 {[%emt 0:00:10]} 29. Bc2 {[%emt 0:00:39]} Rfb8 {[%emt 0:00:23]} 30. Rxb7 {[%emt 0:00:14]} Rxb7 {[%emt 0:00:05]} 31. Kf1 {[%emt 0:00:41]} Kf7 {[%emt 0:00:05]} 32. Ke1 {[%emt 0:00:34]} Nc8 {[%emt 0:00:32]} 33. Rc5 {[%emt 0:00:42]} Nd6 {[%emt 0:01:23]} 34. f3 {[%emt 0:00:01]} Ra7 {[%emt 0:00:24]} 35. Kd2 {[%emt 0:01:49]} Nb7 {[%emt 0:00:28]} 36. Re5 {[%emt 0:00:07]} c5 {[%emt 0:02:27]} 37. d5 {[%emt 0:01:00]} exd5 {[%emt 0:00:15]} 38. Rxd5 {[%emt 0:00:29]} Be6 {[%emt 0:00:41]} 39. Re5 {[%emt 0:00:00]} g6 {[%emt 0:01:27]} 40. Bb3 {[%emt 0:00:28]} Na5 {[%emt 0:00:23]} 41. Bxa5 {[%emt 0:00:35]} Rxa5 {[%emt 0:00:05]} 42. Re1 {[%emt 0:00:50]} Bd7 {[%emt 0:00:24]} 43. Kc3 {[%emt 0:00:37]} Kf6 {[%emt 0:00:18]} 44. f4 {[%emt 0:00:24]} Bc6 {[%emt 0:02:53]} 45. g3 {[%emt 0:00:17]} Ra8 {[%emt 0:00:45]} 46. Ra1 {[%emt 0:00:47]} Ra5 {[%emt 0:00:09]} 47. Bc2 {[%emt 0:00:35]} g5 {[%emt 0:02:28]} 48. Rd1 {[%emt 0:00:29]} Be4 {[%emt 0:00:48]} 49. Rd6+ {[%emt 0:00:29]} Ke7 {[%emt 0:02:24]} 50. Rxh6 {[%emt 0:00:02]} Bxc2 {[%emt 0:00:12]} 51. Kxc2 {[%emt 0:00:12]} gxf4 {[%emt 0:00:02]} 52. Kb3 {[%emt 0:01:17]} f3 {[%emt 0:00:21]} 53. Rh4 {[%emt 0:00:02]} Ra8 {[%emt 0:00:45]} 54. Rf4 {[%emt 0:00:09]} Rb8+ {[%emt 0:00:05]} 55. Kc3 {[%emt 0:00:33]} Ke6 {[%emt 0:00:10]} 56. Rxf3 {[%emt 0:00:25]} Rb4 {[%emt 0:00:03]} 57. Re3+ {[%emt 0:01:18]} Kf6 {[%emt 0:00:09]} 58. a5 {[%emt 0:00:32]} Ra4 {[%emt 0:00:05]} 59. Kb3 {[%emt 0:00:31]} Rxa5 {[%emt 0:00:05]} 60. Rd3 {[%emt 0:00:33]} Ra7 {[%emt 0:01:06]} 61. Rd5 {[%emt 0:00:20]} Rb7+ {[%emt 0:00:04]} 62. Kc3 {[%emt 0:00:27]} Rc7 {[%emt 0:00:07]} 63. Kd3 {[%emt 0:00:14]} Kg5 {[%emt 0:00:32]} 64. Ke3 {[%emt 0:00:49]} Kg4 {[%emt 0:00:40]} 65. Kf2 {[%emt 0:00:33]} Rc8 {[%emt 0:01:10]} 66. Kg2 {[%emt 0:00:18]} Kg5 {[%emt 0:02:49]} 67. Kf3 {[%emt 0:00:13]} Ra8 {[%emt 0:00:19]} 68. h4+ {[%emt 0:00:38]} Kf6 {[%emt 0:00:04]} 69. Rxc5 {[%emt 0:00:13]} 1-0

[Event "Chile-ch Women 2019"]
[Site "Santiago Las Condes"]
[Date "2019.02.12"]
[Round "2.5"]
[White "Henriquez Agurto, Antonia"]
[Black "Reyes Jara, Paula"]
[Result "0-1"]
[ECO "C50"]
[WhiteElo "1616"]
[BlackElo "1955"]
[Annotator "NA RC"]
[PlyCount "54"]
[EventDate "2019.02.12"]
[EventType "swiss"]
[EventCountry "CHI"]
[SourceTitle "playchess.com"]
[Source "ChessBase"]
[SourceQuality "1"]
[TimeControl "5400+30"]

{[%evp 8,42,60,32767,32767,32767,32767,25,32767,32767,22,32767,25,15,23,-27,-23,-54,-14,-44,-41,-74,-49,-76,0,0,-8,-96,-110,-186,-159,-175,-191,-190,-145,-148,-157]} 1. e4 {[%emt 0:00:00]} e5 {[%emt 0:00:00]} 2. Nf3 {[%emt 0:00:00]} Nc6 {[%emt 0:00:00]} 3. Bc4 {[%emt 0:00:00]} Be7 {[%emt 0:00:13]} 4. d4 {[%emt 0:00:25]} d6 {[%emt 0:00:56]} 5. O-O {[%emt 0:02:30]} Bg4 {[%emt 0:00:28] C50: Hungarian Defence and Giuoco Pianissimo} (5... Nf6 6. d5 Nb8 7. Bd3 Nbd7 8. c4 Nc5 9. Nc3 Nxd3 10. Qxd3 O-O 11. Nd2 Nh5 12. g3 g6 13. b4 f5 14. Ba3 {½-½ (32) Anand,V (2786)-Ivanchuk,V (2738) Leuven 2017}) 6. c3 {[%emt 0:02:21]} Nf6 {[%emt 0:02:09]} 7. d5 {[%emt 0:03:33]} Nb8 {[%emt 0:01:43]} 8. Re1 {[%emt 0:01:00]} O-O {[%emt 0:01:48]} 9. Nbd2 {[%emt 0:03:23]} c6 {[%emt 0:02:21]} 10. dxc6 {[%emt 0:04:08]} bxc6 {[%emt 0:01:03]} 11. Qc2 $146 {[%emt 0:01:23]} ({Predecessor:} 11. Bb3 Nbd7 12. h3 Bh5 13. Nf1 Qc7 14. g4 Bg6 {0-1 (59) Chang,H (1766)-Bruschke,A (1517) Rotterdam 2014}) 11... Nbd7 {[%emt 0:01:14]} 12. Be2 {[%emt 0:05:20]} d5 {[%emt 0:05:36]} 13. exd5 {[%emt 0:04:43]} (13. h3 $5 {[%cal Rh3g4]} Bxf3 14. Bxf3 $11) 13... cxd5 {[%emt 0:00:07]} 14. Nf1 {[%emt 0:00:43]} Rc8 {[%emt 0:03:57]} 15. Ng3 {[%emt 0:02:47]} d4 {[%emt 0:10:34]} (15... Bc5 $17 16. Ba6 Rc7) 16. Bd2 {[%emt 0:01:09]} Nc5 {[%emt 0:08:21]} 17. h3 {[%emt 0:05:28]} (17. cxd4 $11 {remains equal.} exd4 18. Nf5) 17... d3 {[%emt 0:01:27] Double Attack} 18. Qc1 {[%emt 0:03:55]} (18. Qb1 $17 {keeps fighting.}) 18... dxe2 {[%emt 0:00:13]} 19. hxg4 {[%emt 0:13:32]} Nd3 {[%emt 0:00:46]} ({Don't play} 19... Nxg4 20. Rxe2 Nd3 21. Qc2) 20. Qc2 {[%emt 0:00:19]} Nxe1 {[%emt 0:00:26]} 21. Rxe1 {[%emt 0:00:15]} Nxg4 $17 {[%emt 0:01:47]} 22. Rxe2 {[%emt 0:08:16]} Bc5 {[%emt 0:03:12]} 23. Ne4 {[%emt 0:01:11]} f5 {[%emt 0:09:47]} 24. Neg5 {[%emt 0:01:58]} Qb6 {[%emt 0:03:30]} 25. Be1 {[%emt 0:05:41]} e4 {[%emt 0:01:20]} 26. Nd2 {[%emt 0:03:18]} e3 {[%emt 0:00:16]} 27. Nc4 {[%emt 0:03:24]} exf2+ {[%emt 0:00:07]} 0-1

[Event "Chile-ch Women 2019"]
[Site "Santiago Las Condes"]
[Date "2019.02.12"]
[Round "2.6"]
[White "Ruiz Olate, Emily Andrea"]
[Black "Romero Troncoso, Liset Anais"]
[Result "1/2-1/2"]
[ECO "C26"]
[WhiteElo "1892"]
[BlackElo "1604"]
[Annotator "NA RC"]
[PlyCount "74"]
[EventDate "2019.02.12"]
[EventType "swiss"]
[EventCountry "CHI"]
[SourceTitle "playchess.com"]
[Source "ChessBase"]
[SourceQuality "1"]
[TimeControl "5400+30"]

{[%evp 14,74,24,32767,12,-2,38,18,29,36,30,18,27,28,93,92,94,70,94,60,61,17,23,18,19,0,0,-43,-39,-72,-81,32767,0,32767,32767,32767,-131,32767,17,32767,32767,32767,12,0,0,0,0,0,0,0,0,0,0,32767,32767,32767,32767,32767,32767,32767,32767,32767,0]} 1. e4 {[%emt 0:00:00]} e5 {[%emt 0:00:00]} 2. Nc3 {[%emt 0:00:00]} Nf6 {[%emt 0:00:13]} 3. g3 {[%emt 0:00:00]} Bc5 {[%emt 0:01:48]} 4. Bg2 {[%emt 0:00:00]} d6 {[%emt 0:01:30]} 5. h3 {[%emt 0:00:02]} c6 {[%emt 0:02:41]} (5... a6 6. d3 Nc6 7. Nge2 O-O 8. O-O b5 9. a3 Rb8 10. Kh2 a5 11. f4 b4 12. axb4 axb4 13. Nb1 exf4 14. Nxf4 Nd4 15. Nd2 Bb7 16. c3 bxc3 17. bxc3 {1-0 (38) Mamedov,R (2688)-Inarkiev,E (2709) Doha 2016}) 6. Nge2 {[%emt 0:00:44] C26: Vienna Game: 2...Nf6, sidelines} O-O {[%emt 0:03:32]} 7. O-O {[%emt 0:00:09]} Be6 {[%emt 0:03:26]} 8. d3 {[%emt 0:04:57]} h6 $146 {[%emt 0:07:43]} ({Predecessor:} 8... d5 9. exd5 Nxd5 10. Kh2 Na6 11. f4 exf4 12. Nxf4 Nxf4 13. Bxf4 Nb4 14. Qd2 {1-0 (61) Nielsen,S (2195)-Barkhagen,J (2400) Aarhus 1995}) 9. Kh2 {[%emt 0:00:11]} d5 {[%emt 0:01:02]} 10. f4 {[%emt 0:06:31]} exf4 $1 {[%emt 0:13:13]} 11. Nxf4 {[%emt 0:02:14]} dxe4 {[%emt 0:01:04]} 12. Nxe6 {[%emt 0:00:11]} fxe6 {[%emt 0:00:18]} 13. Nxe4 {[%emt 0:00:13]} Nbd7 {[%emt 0:02:32]} (13... Nxe4 $11 {keeps the balance.} 14. Rxf8+ (14. Bxe4 Rxf1 15. Qxf1 Nd7 $11) (14. dxe4 Qxd1 15. Rxd1 e5 $11) 14... Qxf8 15. dxe4 Qe7) 14. Nxc5 {[%emt 0:07:09]} Nxc5 {[%emt 0:00:15]} 15. Be3 {[%emt 0:06:51]} Qd6 {[%emt 0:00:52]} 16. Qe2 {[%emt 0:01:38]} e5 {[%emt 0:01:51]} 17. Bxc5 {[%emt 0:05:54]} Qxc5 {[%emt 0:00:10]} 18. Rf5 {[%emt 0:00:29]} Nd7 {[%emt 0:03:08]} 19. Rxf8+ {[%emt 0:20:47]} Rxf8 {[%emt 0:00:07]} 20. d4 {[%emt 0:00:11]} exd4 {[%emt 0:05:27]} 21. Qe6+ {[%emt 0:00:49] Double Attack} Rf7 $1 {[%emt 0:00:08]} 22. Rf1 {[%emt 0:22:08] [#]} Qf8 {[%emt 0:02:43]} ({Black should try} 22... Nf6 $1 $17 23. Qb3 Kf8) 23. Be4 {[%emt 0:09:33]} Qe7 {[%emt 0:02:32]} 24. Bf5 {[%emt 0:02:28]} Kf8 {[%emt 0:03:21]} 25. Qc4 {[%emt 0:03:58]} c5 {[%emt 0:06:29]} (25... Ne5 $17 26. Qe2 g6) 26. Bxd7 {[%emt 0:00:30]} Qxd7 {[%emt 0:01:21]} 27. Qxc5+ {[%emt 0:00:10]} Kg8 {[%emt 0:04:44]} 28. Rxf7 {[%emt 0:00:41]} Qxf7 {[%emt 0:01:55]} 29. Qxd4 {[%emt 0:00:37]} Qxa2 {[%emt 0:00:22]} 30. Qd8+ {[%emt 0:00:39]} Kh7 {[%emt 0:00:25]} 31. Qd3+ {[%emt 0:00:09]} Kg8 {[%emt 0:00:17]} 32. b3 {[%emt 0:00:41]} b6 {[%emt 0:02:00]} 33. Qd5+ {[%emt 0:01:40]} Kh7 {[%emt 0:00:21]} 34. Qf5+ {[%emt 0:00:16]} Kg8 {[%emt 0:00:24]} 35. g4 {[%emt 0:00:36]} Qa6 {[%emt 0:01:08]} 36. Qe6+ {[%emt 0:00:37]} Kf8 {[%emt 0:00:55]} 37. Kg3 {[%emt 0:01:28]} Qa5 $11 {[%emt 0:02:42]} 1/2-1/2